[Event "Early-Titled-Tuesday-Blitz-October-24-2023"]
[Site "Chess.com"]
[Date "2023.10.24"]
[Round "9"]
[White "K_A_S_T_O_R"]
[Black "lefonghua"]
[Result "0-1"]
[WhiteElo "2860"]
[BlackElo "2709"]
[TimeControl "180+1"]
[EndTime "9:38:30 PDT"]
[Termination "lefonghua won by resignation"]

1. e4 {[%clk 0:03:00.9]} 1... c5 {[%clk 0:02:59.7]} 2. Nf3 {[%clk 0:03:00.8]}
2... g6 {[%clk 0:03:00.1]} 3. d4 {[%clk 0:03:00.6]} 3... cxd4 {[%clk 0:03:01]}
4. Nxd4 {[%clk 0:03:01.3]} 4... Bg7 {[%clk 0:03:01.4]} 5. c4 {[%clk 0:03:01.5]}
5... Nc6 {[%clk 0:03:01.9]} 6. Be3 {[%clk 0:03:01.9]} 6... Nf6 {[%clk
0:03:01.6]} 7. Nc3 {[%clk 0:03:01.8]} 7... d6 {[%clk 0:03:01.4]} 8. Be2 {[%clk
0:03:01.7]} 8... O-O {[%clk 0:03:01.6]} 9. O-O {[%clk 0:03:01.9]} 9... Bd7
{[%clk 0:03:02.2]} 10. Qd2 {[%clk 0:03:01.9]} 10... Nxd4 {[%clk 0:03:01.7]} 11.
Bxd4 {[%clk 0:03:02.5]} 11... a5 {[%clk 0:03:02.4]} 12. b3 {[%clk 0:03:02]}
12... Bc6 {[%clk 0:03:02.9]} 13. f3 {[%clk 0:03:00.2]} 13... Nd7 {[%clk
0:03:02.7]} 14. Bf2 {[%clk 0:03:00.4]} 14... Nc5 {[%clk 0:03:01.8]} 15. Rab1
{[%clk 0:02:59.8]} 15... Qb6 {[%clk 0:03:00.7]} 16. a3 {[%clk 0:02:57.3]} 16...
Qd8 {[%clk 0:02:29.8]} 17. Bd1 {[%clk 0:02:55.5]} 17... h5 {[%clk 0:02:25.2]}
18. Bc2 {[%clk 0:02:49.2]} 18... Kh7 {[%clk 0:02:23.9]} 19. b4 {[%clk
0:02:47.4]} 19... axb4 {[%clk 0:02:23.7]} 20. axb4 {[%clk 0:02:47.4]} 20... Na4
{[%clk 0:02:14.7]} 21. Bxa4 {[%clk 0:02:44.8]} 21... Bxa4 {[%clk 0:02:15.6]} 22.
b5 {[%clk 0:02:39.3]} 22... Qa5 {[%clk 0:02:10.5]} 23. Bd4 {[%clk 0:02:34.1]}
23... Rfc8 {[%clk 0:01:49.3]} 24. Qd3 {[%clk 0:02:25.4]} 24... Bc2 {[%clk
0:01:39.3]} 0-1

[Event "Early-Titled-Tuesday-Blitz-October-24-2023"]
[Site "Chess.com"]
[Date "2023.10.24"]
[Round "9"]
[White "ExchangeAB"]
[Black "Buzhizhebuguai"]
[Result "1-0"]
[WhiteElo "2555"]
[BlackElo "2609"]
[TimeControl "180+1"]
[EndTime "9:38:45 PDT"]
[Termination "ExchangeAB won by resignation"]

1. d4 {[%clk 0:03:00.9]} 1... Nf6 {[%clk 0:02:59.9]} 2. Nc3 {[%clk 0:03:00.9]}
2... d5 {[%clk 0:02:58.7]} 3. Bf4 {[%clk 0:03:00.4]} 3... a6 {[%clk 0:02:58.7]}
4. e3 {[%clk 0:03:00.3]} 4... e6 {[%clk 0:02:58.8]} 5. a4 {[%clk 0:02:58.6]}
5... c5 {[%clk 0:02:56.3]} 6. dxc5 {[%clk 0:02:43.9]} 6... Bxc5 {[%clk
0:02:55.6]} 7. Bd3 {[%clk 0:02:44.3]} 7... Nc6 {[%clk 0:02:53.7]} 8. Nf3 {[%clk
0:02:42.1]} 8... h6 {[%clk 0:02:53.7]} 9. O-O {[%clk 0:02:40.6]} 9... O-O {[%clk
0:02:53.4]} 10. e4 {[%clk 0:02:39.3]} 10... dxe4 {[%clk 0:02:38.5]} 11. Nxe4
{[%clk 0:02:40.2]} 11... Nxe4 {[%clk 0:02:38.7]} 12. Bxe4 {[%clk 0:02:40.1]}
12... Qe7 {[%clk 0:02:34.7]} 13. c3 {[%clk 0:02:36.5]} 13... e5 {[%clk
0:02:29.7]} 14. Be3 {[%clk 0:02:19.9]} 14... Bxe3 {[%clk 0:02:27]} 15. fxe3
{[%clk 0:02:20.8]} 15... Bg4 {[%clk 0:02:16.9]} 16. Qb3 {[%clk 0:02:16]} 16...
Rac8 {[%clk 0:02:06]} 17. h3 {[%clk 0:02:13.1]} 17... Bxf3 {[%clk 0:02:02]} 18.
Rxf3 {[%clk 0:02:14]} 18... Kh8 {[%clk 0:01:54.4]} 19. Raf1 {[%clk 0:02:13.5]}
19... Na5 {[%clk 0:01:51.6]} 20. Rxf7 {[%clk 0:02:02.2]} 20... Rxf7 {[%clk
0:01:44.4]} 21. Qxf7 {[%clk 0:01:58.1]} 21... Qc5 {[%clk 0:01:44.1]} 22. Qg6
{[%clk 0:01:53.9]} 1-0

[Event "Early-Titled-Tuesday-Blitz-October-24-2023"]
[Site "Chess.com"]
[Date "2023.10.24"]
[Round "9"]
[White "IsaqueGoncalvesSanto"]
[Black "InitiatingASC"]
[Result "0-1"]
[WhiteElo "1842"]
[BlackElo "2332"]
[TimeControl "180+1"]
[EndTime "9:38:49 PDT"]
[Termination "InitiatingASC won by checkmate"]

1. d4 {[%clk 0:03:00.9]} 1... Nf6 {[%clk 0:02:58.8]} 2. c4 {[%clk 0:03:00.9]}
2... e6 {[%clk 0:02:57]} 3. Nc3 {[%clk 0:03:00.9]} 3... c5 {[%clk 0:02:56.4]} 4.
e3 {[%clk 0:02:51.5]} 4... cxd4 {[%clk 0:02:53.8]} 5. exd4 {[%clk 0:02:51.2]}
5... b6 {[%clk 0:02:53.8]} 6. Nf3 {[%clk 0:02:48.2]} 6... Bb7 {[%clk 0:02:53.8]}
7. Be2 {[%clk 0:02:48.2]} 7... Be7 {[%clk 0:02:53.6]} 8. O-O {[%clk 0:02:48.3]}
8... O-O {[%clk 0:02:54.3]} 9. a3 {[%clk 0:02:47.6]} 9... d6 {[%clk 0:02:54.9]}
10. b3 {[%clk 0:02:46.7]} 10... Nbd7 {[%clk 0:02:55.1]} 11. Bb2 {[%clk
0:02:46.8]} 11... a6 {[%clk 0:02:53.6]} 12. Qc2 {[%clk 0:02:42.7]} 12... Rc8
{[%clk 0:02:52.7]} 13. Rad1 {[%clk 0:02:42.5]} 13... Qc7 {[%clk 0:02:52.3]} 14.
Qb1 {[%clk 0:02:42.3]} 14... Rfe8 {[%clk 0:02:48.8]} 15. Qa1 {[%clk 0:02:41.3]}
15... Nf8 {[%clk 0:02:48]} 16. Rc1 {[%clk 0:02:30.5]} 16... Ng6 {[%clk
0:02:47.8]} 17. Rfd1 {[%clk 0:02:29.8]} 17... Nf4 {[%clk 0:02:46.6]} 18. Bf1
{[%clk 0:02:28.6]} 18... Bxf3 {[%clk 0:02:46.2]} 19. gxf3 {[%clk 0:02:27.3]}
19... Qb7 {[%clk 0:02:45.6]} 20. d5 {[%clk 0:02:03.9]} 20... e5 {[%clk
0:02:42.4]} 21. Ne4 {[%clk 0:01:59.3]} 21... Nxe4 {[%clk 0:02:31.5]} 22. fxe4
{[%clk 0:01:58.5]} 22... Qd7 {[%clk 0:02:32.4]} 23. f3 {[%clk 0:01:52.4]} 23...
f5 {[%clk 0:02:32]} 24. Bd3 {[%clk 0:01:43.8]} 24... fxe4 {[%clk 0:02:31.5]} 25.
fxe4 {[%clk 0:01:43.7]} 25... Qg4+ {[%clk 0:02:31.6]} 26. Kf1 {[%clk 0:01:39.4]}
26... Qf3+ {[%clk 0:02:25.6]} 27. Ke1 {[%clk 0:01:38.7]} 27... Nxd3+ {[%clk
0:02:24.8]} 28. Rxd3 {[%clk 0:01:37.2]} 28... Qxd3 {[%clk 0:02:24.9]} 29. Qb1
{[%clk 0:01:16.8]} 29... Bh4# {[%clk 0:02:22.4]} 0-1

[Event "Early-Titled-Tuesday-Blitz-October-24-2023"]
[Site "Chess.com"]
[Date "2023.10.24"]
[Round "9"]
[White "Estrategia_vs_Tactica"]
[Black "UK_23"]
[Result "1-0"]
[WhiteElo "2284"]
[BlackElo "2390"]
[TimeControl "180+1"]
[EndTime "9:39:18 PDT"]
[Termination "Estrategia_vs_Tactica won by resignation"]

1. d4 {[%clk 0:02:49.6]} 1... d5 {[%clk 0:03:00.3]} 2. Nf3 {[%clk 0:02:46.8]}
2... Nf6 {[%clk 0:03:00.7]} 3. g3 {[%clk 0:02:46.9]} 3... e6 {[%clk 0:03:00.9]}
4. Bg2 {[%clk 0:02:47.5]} 4... Be7 {[%clk 0:03:01.8]} 5. O-O {[%clk 0:02:47.9]}
5... O-O {[%clk 0:03:02.7]} 6. c4 {[%clk 0:02:48.2]} 6... c6 {[%clk 0:03:03.1]}
7. Nc3 {[%clk 0:02:48]} 7... b6 {[%clk 0:03:03.7]} 8. Qc2 {[%clk 0:02:46.5]}
8... Ba6 {[%clk 0:03:03.8]} 9. cxd5 {[%clk 0:02:42.1]} 9... cxd5 {[%clk
0:03:03.6]} 10. Ne5 {[%clk 0:02:42.2]} 10... Nfd7 {[%clk 0:03:02.9]} 11. Bf4
{[%clk 0:02:38.6]} 11... Nxe5 {[%clk 0:03:02.5]} 12. dxe5 {[%clk 0:02:37.4]}
12... Nd7 {[%clk 0:03:02.2]} 13. Rfd1 {[%clk 0:02:36]} 13... Rc8 {[%clk
0:03:02.3]} 14. e4 {[%clk 0:02:35.1]} 14... dxe4 {[%clk 0:02:33.1]} 15. Bxe4
{[%clk 0:02:34.7]} 15... h6 {[%clk 0:02:28.2]} 16. Qa4 {[%clk 0:02:26.8]} 16...
Nc5 {[%clk 0:02:28.4]} 17. Rxd8 {[%clk 0:02:26.1]} 17... Nxa4 {[%clk 0:02:25.1]}
18. Rxf8+ {[%clk 0:02:26.1]} 18... Bxf8 {[%clk 0:02:22.2]} 19. Nxa4 {[%clk
0:02:26.3]} 19... Rc4 {[%clk 0:02:15.6]} 20. Nc3 {[%clk 0:02:24.2]} 20... Rb4
{[%clk 0:02:14.6]} 21. b3 {[%clk 0:02:14.2]} 21... Bc5 {[%clk 0:02:08.1]} 22.
Be3 {[%clk 0:02:10]} 22... Bxe3 {[%clk 0:02:02.5]} 23. fxe3 {[%clk 0:02:10.9]}
23... Kf8 {[%clk 0:02:01.1]} 24. Rb1 {[%clk 0:02:09.5]} 24... Ke7 {[%clk
0:02:01.4]} 25. a3 {[%clk 0:02:09.4]} 25... Rxe4 {[%clk 0:01:59.2]} 26. Nxe4
{[%clk 0:02:09.6]} 26... Bd3 {[%clk 0:02:00.1]} 27. Nd2 {[%clk 0:02:10]} 27...
Bxb1 {[%clk 0:01:59.1]} 28. Nxb1 {[%clk 0:02:10.9]} 28... Kd7 {[%clk 0:01:59.7]}
29. Kf2 {[%clk 0:02:09.3]} 29... Kc6 {[%clk 0:02:00.4]} 30. Nc3 {[%clk
0:02:09.9]} 30... Kc5 {[%clk 0:01:59.7]} 31. Kf3 {[%clk 0:02:08.8]} 31... b5
{[%clk 0:02:00]} 32. Ne4+ {[%clk 0:02:07.8]} 32... Kd5 {[%clk 0:01:59.6]} 33.
Nd6 {[%clk 0:02:07.8]} 33... Kxe5 {[%clk 0:01:52.7]} 34. Nxb5 {[%clk 0:02:08]}
34... a6 {[%clk 0:01:52.6]} 35. Nc3 {[%clk 0:02:07.9]} 35... f5 {[%clk
0:01:52.2]} 36. h4 {[%clk 0:02:06.9]} 36... g5 {[%clk 0:01:52.3]} 37. hxg5
{[%clk 0:02:07.2]} 37... hxg5 {[%clk 0:01:53.2]} 38. g4 {[%clk 0:02:07.7]} 38...
Kd6 {[%clk 0:01:51.2]} 39. b4 {[%clk 0:02:06.4]} 39... Kc6 {[%clk 0:01:49.7]}
40. a4 {[%clk 0:02:06.3]} 40... Kb6 {[%clk 0:01:49.8]} 41. Ne2 {[%clk
0:02:06.2]} 41... Kc6 {[%clk 0:01:49.6]} 42. Nd4+ {[%clk 0:02:06.1]} 42... Kd5
{[%clk 0:01:49.6]} 43. gxf5 {[%clk 0:02:06.5]} 43... exf5 {[%clk 0:01:48.6]} 44.
Nxf5 {[%clk 0:02:04.6]} 44... Kc4 {[%clk 0:01:49.5]} 45. b5 {[%clk 0:02:04]}
45... axb5 {[%clk 0:01:49.7]} 46. Nd6+ {[%clk 0:02:03.6]} 1-0

[Event "Early-Titled-Tuesday-Blitz-October-24-2023"]
[Site "Chess.com"]
[Date "2023.10.24"]
[Round "9"]
[White "kleinebeer98"]
[Black "Boundless_Strike"]
[Result "1-0"]
[WhiteElo "2853"]
[BlackElo "2645"]
[TimeControl "180+1"]
[EndTime "9:39:40 PDT"]
[Termination "kleinebeer98 won by checkmate"]

1. e4 {[%clk 0:03:00.9]} 1... d6 {[%clk 0:02:49.6]} 2. d4 {[%clk 0:03:01]} 2...
e5 {[%clk 0:02:50.2]} 3. Nf3 {[%clk 0:03:00.9]} 3... Bg4 {[%clk 0:02:50.1]} 4.
dxe5 {[%clk 0:02:57.3]} 4... Nc6 {[%clk 0:02:49.1]} 5. Bb5 {[%clk 0:02:55.5]}
5... Qd7 {[%clk 0:02:48.9]} 6. h3 {[%clk 0:02:53.4]} 6... Bh5 {[%clk 0:02:48.2]}
7. exd6 {[%clk 0:02:51.6]} 7... Bxd6 {[%clk 0:02:47.9]} 8. Be3 {[%clk
0:02:50.8]} 8... O-O-O {[%clk 0:02:46]} 9. Nbd2 {[%clk 0:02:48.4]} 9... Nf6
{[%clk 0:02:41.7]} 10. g4 {[%clk 0:02:40.1]} 10... a6 {[%clk 0:02:10.4]} 11.
Bxc6 {[%clk 0:02:35.8]} 11... Qxc6 {[%clk 0:02:11.3]} 12. gxh5 {[%clk
0:02:36.3]} 12... Nxe4 {[%clk 0:02:11.6]} 13. Nxe4 {[%clk 0:02:26.5]} 13... Qxe4
{[%clk 0:00:15]} 14. Qe2 {[%clk 0:02:25.3]} 14... Bf4 {[%clk 0:00:11.4]} 15. O-O
{[%clk 0:02:25.3]} 15... Rhe8 {[%clk 0:00:10]} 16. Rfe1 {[%clk 0:02:24.3]} 16...
g5 {[%clk 0:00:09.2]} 17. Rad1 {[%clk 0:02:22.4]} 17... Rxd1 {[%clk 0:00:08.8]}
18. Qxd1 {[%clk 0:02:21.8]} 18... g4 {[%clk 0:00:09.5]} 19. Bxf4 {[%clk
0:02:22]} 19... Qxf4 {[%clk 0:00:06.3]} 20. Rxe8# {[%clk 0:02:22.2]} 1-0

[Event "Early-Titled-Tuesday-Blitz-October-24-2023"]
[Site "Chess.com"]
[Date "2023.10.24"]
[Round "9"]
[White "Predator0608"]
[Black "lamomiajunior"]
[Result "1-0"]
[WhiteElo "2557"]
[BlackElo "2655"]
[TimeControl "180+1"]
[EndTime "9:40:04 PDT"]
[Termination "Predator0608 won by resignation"]

1. e4 {[%clk 0:03:00.9]} 1... c6 {[%clk 0:03:00.1]} 2. d4 {[%clk 0:03:00.2]}
2... d5 {[%clk 0:03:00.7]} 3. f3 {[%clk 0:02:59.4]} 3... e6 {[%clk 0:03:00.8]}
4. Nc3 {[%clk 0:02:58.8]} 4... Bb4 {[%clk 0:03:01.5]} 5. a3 {[%clk 0:02:58.5]}
5... Bxc3+ {[%clk 0:03:01.2]} 6. bxc3 {[%clk 0:02:59.4]} 6... dxe4 {[%clk
0:03:02.1]} 7. a4 {[%clk 0:03:00]} 7... c5 {[%clk 0:02:55.5]} 8. Ba3 {[%clk
0:02:54.2]} 8... cxd4 {[%clk 0:02:51.8]} 9. cxd4 {[%clk 0:02:53.4]} 9... Qa5+
{[%clk 0:02:44.6]} 10. Kf2 {[%clk 0:02:53]} 10... Nf6 {[%clk 0:02:38.5]} 11. Nh3
{[%clk 0:02:38.4]} 11... Nc6 {[%clk 0:02:31.1]} 12. Bb5 {[%clk 0:02:30.3]} 12...
Bd7 {[%clk 0:02:21.3]} 13. Re1 {[%clk 0:02:17.1]} 13... a6 {[%clk 0:02:17.7]}
14. Bf1 {[%clk 0:02:14]} 14... exf3 {[%clk 0:02:12.4]} 15. gxf3 {[%clk
0:02:14.9]} 15... O-O-O {[%clk 0:01:57.9]} 16. Rb1 {[%clk 0:02:10.2]} 16... Be8
{[%clk 0:01:42.4]} 17. Bc5 {[%clk 0:01:47.4]} 17... Nd7 {[%clk 0:01:35.7]} 18.
Bd6 {[%clk 0:01:30]} 18... Qd5 {[%clk 0:01:23.3]} 19. Bg3 {[%clk 0:01:25.9]}
19... Qxd4+ {[%clk 0:01:17.3]} 20. Qxd4 {[%clk 0:01:24.7]} 20... Nxd4 {[%clk
0:01:18.2]} 21. Re4 {[%clk 0:01:25]} 21... Nc6 {[%clk 0:01:18]} 22. Rc4 {[%clk
0:01:23.3]} 22... h6 {[%clk 0:01:08.8]} 23. Rxc6+ {[%clk 0:01:20.6]} 1-0

[Event "Early-Titled-Tuesday-Blitz-October-24-2023"]
[Site "Chess.com"]
[Date "2023.10.24"]
[Round "9"]
[White "AnaKuchava"]
[Black "Chessbard1972"]
[Result "0-1"]
[WhiteElo "2223"]
[BlackElo "2345"]
[TimeControl "180+1"]
[EndTime "9:40:07 PDT"]
[Termination "Chessbard1972 won by resignation"]

1. d4 {[%clk 0:03:00.9]} 1... d5 {[%clk 0:02:57.1]} 2. Nf3 {[%clk 0:02:55.9]}
2... c5 {[%clk 0:02:55.1]} 3. e3 {[%clk 0:02:42.8]} 3... Nf6 {[%clk 0:02:53.7]}
4. b3 {[%clk 0:02:37.4]} 4... Nc6 {[%clk 0:02:52.6]} 5. Bb2 {[%clk 0:02:34.7]}
5... e6 {[%clk 0:02:52.4]} 6. a3 {[%clk 0:02:26.4]} 6... Bd6 {[%clk 0:02:52.1]}
7. Bd3 {[%clk 0:02:24.2]} 7... Qe7 {[%clk 0:02:52.1]} 8. O-O {[%clk 0:02:21]}
8... cxd4 {[%clk 0:02:51.5]} 9. exd4 {[%clk 0:02:18.6]} 9... O-O {[%clk
0:02:50]} 10. Re1 {[%clk 0:02:18.4]} 10... a6 {[%clk 0:02:44.2]} 11. Ne5 {[%clk
0:02:15.7]} 11... Bd7 {[%clk 0:02:41.8]} 12. Nd2 {[%clk 0:02:07.1]} 12... b5
{[%clk 0:02:39.4]} 13. Ndf3 {[%clk 0:02:02.5]} 13... Rfc8 {[%clk 0:02:37.8]} 14.
Qd2 {[%clk 0:01:56.6]} 14... Be8 {[%clk 0:02:37.3]} 15. h3 {[%clk 0:01:47.9]}
15... Ra7 {[%clk 0:02:35.5]} 16. Nxc6 {[%clk 0:01:23]} 16... Bxc6 {[%clk
0:02:33.6]} 17. Ne5 {[%clk 0:01:23]} 17... Be8 {[%clk 0:02:31.2]} 18. f4 {[%clk
0:01:10.2]} 18... g6 {[%clk 0:02:28.5]} 19. g4 {[%clk 0:01:00.8]} 19... Rac7
{[%clk 0:02:26.9]} 20. Kh1 {[%clk 0:00:49.1]} 20... Ne4 {[%clk 0:02:24.5]} 21.
Qg2 {[%clk 0:00:35.5]} 21... f6 {[%clk 0:02:20]} 22. Nf3 {[%clk 0:00:32.4]}
22... Bxf4 {[%clk 0:02:16.3]} 23. Rad1 {[%clk 0:00:21.8]} 23... Bc6 {[%clk
0:02:12.3]} 24. Re2 {[%clk 0:00:03.2]} 24... Ng3+ {[%clk 0:02:10.4]} 0-1

[Event "Early-Titled-Tuesday-Blitz-October-24-2023"]
[Site "Chess.com"]
[Date "2023.10.24"]
[Round "9"]
[White "pinguino120"]
[Black "LiadCuba"]
[Result "1-0"]
[WhiteElo "2224"]
[BlackElo "2346"]
[TimeControl "180+1"]
[EndTime "9:40:12 PDT"]
[Termination "pinguino120 won by checkmate"]

1. e4 {[%clk 0:03:00.9]} 1... c5 {[%clk 0:02:59.5]} 2. d3 {[%clk 0:02:58.7]}
2... Nc6 {[%clk 0:02:50.1]} 3. g3 {[%clk 0:02:58.5]} 3... e6 {[%clk 0:02:46.7]}
4. Bg2 {[%clk 0:02:57.5]} 4... Nge7 {[%clk 0:02:46.2]} 5. Nd2 {[%clk 0:02:57]}
5... g6 {[%clk 0:02:46.4]} 6. f4 {[%clk 0:02:50.5]} 6... Bg7 {[%clk 0:02:46.5]}
7. Ngf3 {[%clk 0:02:51]} 7... O-O {[%clk 0:02:45.9]} 8. O-O {[%clk 0:02:51.4]}
8... d5 {[%clk 0:02:45.9]} 9. e5 {[%clk 0:02:50.8]} 9... Nf5 {[%clk 0:02:44.6]}
10. Qe2 {[%clk 0:02:45.9]} 10... Ncd4 {[%clk 0:02:43.7]} 11. Nxd4 {[%clk
0:02:44.4]} 11... Nxd4 {[%clk 0:02:44.6]} 12. Qd1 {[%clk 0:02:42.7]} 12... f6
{[%clk 0:02:40.7]} 13. c3 {[%clk 0:02:42]} 13... Nf5 {[%clk 0:02:40.2]} 14. Nf3
{[%clk 0:02:33.5]} 14... fxe5 {[%clk 0:02:37.8]} 15. fxe5 {[%clk 0:02:33]} 15...
d4 {[%clk 0:02:30]} 16. Qe2 {[%clk 0:02:28.5]} 16... Bd7 {[%clk 0:02:23.8]} 17.
cxd4 {[%clk 0:02:15.8]} 17... cxd4 {[%clk 0:02:18.3]} 18. g4 {[%clk 0:02:16.1]}
18... Ne3 {[%clk 0:02:10.1]} 19. Bxe3 {[%clk 0:02:15.6]} 19... dxe3 {[%clk
0:02:11]} 20. Qxe3 {[%clk 0:02:15.2]} 20... Bc6 {[%clk 0:02:11.3]} 21. d4 {[%clk
0:01:49.6]} 21... Qb6 {[%clk 0:02:09.8]} 22. b3 {[%clk 0:01:43.9]} 22... Rad8
{[%clk 0:02:05.6]} 23. Rad1 {[%clk 0:01:43.3]} 23... Rd7 {[%clk 0:01:51.2]} 24.
Ng5 {[%clk 0:01:24.6]} 24... Rxf1+ {[%clk 0:01:52.1]} 25. Rxf1 {[%clk
0:01:20.5]} 25... Bxg2 {[%clk 0:01:42]} 26. Kxg2 {[%clk 0:01:20.1]} 26... Rxd4
{[%clk 0:01:28.7]} 27. Qf3 {[%clk 0:01:04.3]} 27... Rd7 {[%clk 0:01:19.7]} 28.
Ne4 {[%clk 0:01:00.1]} 28... Bxe5 {[%clk 0:01:16.3]} 29. Qf8# {[%clk 0:00:56.9]}
1-0

[Event "Early-Titled-Tuesday-Blitz-October-24-2023"]
[Site "Chess.com"]
[Date "2023.10.24"]
[Round "9"]
[White "EdmundPlayer"]
[Black "CHENNAIBOND"]
[Result "1-0"]
[WhiteElo "2204"]
[BlackElo "1689"]
[TimeControl "180+1"]
[EndTime "9:40:20 PDT"]
[Termination "EdmundPlayer won by resignation"]

1. Nc3 {[%clk 0:03:00.9]} 1... e5 {[%clk 0:02:48.3]} 2. e4 {[%clk 0:02:59.8]}
2... Nc6 {[%clk 0:02:44.2]} 3. Bc4 {[%clk 0:02:59.4]} 3... Nf6 {[%clk
0:02:40.2]} 4. d3 {[%clk 0:02:59.3]} 4... Bc5 {[%clk 0:02:37.1]} 5. f4 {[%clk
0:02:58.8]} 5... d6 {[%clk 0:02:33.1]} 6. Nf3 {[%clk 0:02:58.7]} 6... O-O {[%clk
0:02:31.1]} 7. f5 {[%clk 0:02:58.5]} 7... Na5 {[%clk 0:02:24.7]} 8. Bg5 {[%clk
0:02:49.4]} 8... Nxc4 {[%clk 0:02:21.6]} 9. dxc4 {[%clk 0:02:50.3]} 9... c6
{[%clk 0:02:14.4]} 10. Qd3 {[%clk 0:02:43.2]} 10... Qe7 {[%clk 0:01:44.3]} 11.
O-O-O {[%clk 0:02:40.2]} 11... Rd8 {[%clk 0:01:43.1]} 12. h3 {[%clk 0:02:34]}
12... a5 {[%clk 0:01:40.1]} 13. g4 {[%clk 0:02:20.8]} 13... a4 {[%clk
0:01:34.9]} 14. a3 {[%clk 0:02:16.4]} 14... b6 {[%clk 0:01:33.6]} 15. Bxf6
{[%clk 0:01:42.9]} 15... Qxf6 {[%clk 0:01:32]} 16. g5 {[%clk 0:01:43.3]} 16...
Qe7 {[%clk 0:01:32.2]} 17. h4 {[%clk 0:01:39.2]} 17... f6 {[%clk 0:01:25.7]} 18.
Rh2 {[%clk 0:01:03.9]} 18... Ba6 {[%clk 0:01:20]} 19. Rg2 {[%clk 0:01:00.6]}
19... b5 {[%clk 0:01:12]} 20. cxb5 {[%clk 0:00:59.8]} 20... cxb5 {[%clk
0:01:12.2]} 21. Nd5 {[%clk 0:00:56.9]} 21... Qf7 {[%clk 0:01:00.6]} 22. gxf6
{[%clk 0:00:54]} 22... g6 {[%clk 0:01:00.8]} 1-0

[Event "Early-Titled-Tuesday-Blitz-October-24-2023"]
[Site "Chess.com"]
[Date "2023.10.24"]
[Round "9"]
[White "artin10862"]
[Black "wannabe2700"]
[Result "1/2-1/2"]
[WhiteElo "2851"]
[BlackElo "2640"]
[TimeControl "180+1"]
[EndTime "9:40:33 PDT"]
[Termination "Game drawn by repetition"]

1. a3 {[%clk 0:02:58.4]} 1... e5 {[%clk 0:02:58.9]} 2. c4 {[%clk 0:02:57.7]}
2... f5 {[%clk 0:02:55.5]} 3. g3 {[%clk 0:02:56.7]} 3... Nf6 {[%clk 0:02:55.4]}
4. Bg2 {[%clk 0:02:57.3]} 4... g6 {[%clk 0:02:55.8]} 5. Nc3 {[%clk 0:02:56.3]}
5... Bg7 {[%clk 0:02:56]} 6. d3 {[%clk 0:02:57]} 6... O-O {[%clk 0:02:55.9]} 7.
e3 {[%clk 0:02:56.6]} 7... c6 {[%clk 0:02:53.5]} 8. Nge2 {[%clk 0:02:55.3]} 8...
d5 {[%clk 0:02:47]} 9. cxd5 {[%clk 0:02:52.8]} 9... cxd5 {[%clk 0:02:47.9]} 10.
Qb3 {[%clk 0:02:53]} 10... Be6 {[%clk 0:02:48.2]} 11. Qxb7 {[%clk 0:02:51.2]}
11... Nbd7 {[%clk 0:02:48.5]} 12. Nxd5 {[%clk 0:02:51.6]} 12... Rb8 {[%clk
0:02:30.4]} 13. Nxf6+ {[%clk 0:02:44.7]} 13... Rxf6 {[%clk 0:02:22.4]} 14. Qxa7
{[%clk 0:02:43.1]} 14... Bf8 {[%clk 0:01:57.3]} 15. O-O {[%clk 0:02:40.5]} 15...
Nc5 {[%clk 0:01:55.4]} 16. d4 {[%clk 0:02:38]} 16... Rf7 {[%clk 0:01:52.5]} 17.
Qxb8 {[%clk 0:02:35.9]} 17... Qxb8 {[%clk 0:01:52.2]} 18. dxc5 {[%clk
0:02:36.8]} 18... Bc4 {[%clk 0:01:38.6]} 19. Re1 {[%clk 0:02:35.4]} 19... Qb3
{[%clk 0:01:35.7]} 20. c6 {[%clk 0:02:30.5]} 20... Bxe2 {[%clk 0:01:34.5]} 21.
Rxe2 {[%clk 0:02:31.3]} 21... Qd1+ {[%clk 0:01:33.7]} 22. Bf1 {[%clk 0:02:31.9]}
22... Rc7 {[%clk 0:01:17.3]} 23. Rd2 {[%clk 0:02:29.3]} 23... Qb3 {[%clk
0:01:16.4]} 24. Rd3 {[%clk 0:02:26.8]} 24... Qa4 {[%clk 0:01:02.6]} 25. Rc3
{[%clk 0:02:23.9]} 25... e4 {[%clk 0:00:28.9]} 26. b3 {[%clk 0:02:17.9]} 26...
Qa5 {[%clk 0:00:27.2]} 27. Bb2 {[%clk 0:02:17.1]} 27... Bg7 {[%clk 0:00:26.7]}
28. Rc2 {[%clk 0:02:13.3]} 28... Bxb2 {[%clk 0:00:26.2]} 29. Rxb2 {[%clk
0:02:14.2]} 29... Qc3 {[%clk 0:00:24.5]} 30. Raa2 {[%clk 0:02:12.2]} 30... Rxc6
{[%clk 0:00:24.4]} 31. b4 {[%clk 0:02:12.6]} 31... Qe1 {[%clk 0:00:22.7]} 32.
Rc2 {[%clk 0:02:10.9]} 32... Rd6 {[%clk 0:00:21.4]} 33. Re2 {[%clk 0:02:10.8]}
33... Qc1 {[%clk 0:00:20.5]} 34. Rec2 {[%clk 0:02:08.7]} 34... Qe1 {[%clk
0:00:20.6]} 35. Re2 {[%clk 0:01:58.6]} 35... Qc1 {[%clk 0:00:20.8]} 36. Rec2
{[%clk 0:01:55.5]} 36... Qe1 {[%clk 0:00:20.8]} 1/2-1/2

[Event "Early-Titled-Tuesday-Blitz-October-24-2023"]
[Site "Chess.com"]
[Date "2023.10.24"]
[Round "9"]
[White "GMSrinath"]
[Black "MKlose11"]
[Result "0-1"]
[WhiteElo "2806"]
[BlackElo "2647"]
[TimeControl "180+1"]
[EndTime "9:40:37 PDT"]
[Termination "MKlose11 won by resignation"]

1. Nf3 {[%clk 0:03:00.9]} 1... Nf6 {[%clk 0:02:57.2]} 2. c4 {[%clk 0:03:01]}
2... c5 {[%clk 0:02:54.6]} 3. d4 {[%clk 0:03:01.1]} 3... cxd4 {[%clk 0:02:53.5]}
4. Nxd4 {[%clk 0:03:02]} 4... Nc6 {[%clk 0:02:54.4]} 5. Nc3 {[%clk 0:03:02.5]}
5... d6 {[%clk 0:02:54.8]} 6. g3 {[%clk 0:03:02.3]} 6... g6 {[%clk 0:02:55]} 7.
Bg2 {[%clk 0:03:03]} 7... Bd7 {[%clk 0:02:54]} 8. O-O {[%clk 0:03:03.3]} 8...
Bg7 {[%clk 0:02:54.3]} 9. Rb1 {[%clk 0:02:57.4]} 9... O-O {[%clk 0:02:39.5]} 10.
Nc2 {[%clk 0:02:55.7]} 10... Qa5 {[%clk 0:02:37.4]} 11. h3 {[%clk 0:02:49.2]}
11... Qh5 {[%clk 0:02:27.7]} 12. g4 {[%clk 0:02:48.4]} 12... Bxg4 {[%clk
0:02:02.1]} 13. hxg4 {[%clk 0:02:48.3]} 13... Nxg4 {[%clk 0:02:03]} 14. Bf4
{[%clk 0:02:45.8]} 14... Be5 {[%clk 0:02:02.6]} 15. Qd2 {[%clk 0:02:43.7]} 15...
g5 {[%clk 0:01:57.3]} 16. Bxe5 {[%clk 0:02:42.6]} 16... Ncxe5 {[%clk 0:01:58.2]}
17. Rfd1 {[%clk 0:02:29.6]} 17... Qh4 {[%clk 0:01:48]} 18. Ne4 {[%clk
0:02:28.2]} 18... h6 {[%clk 0:01:48.1]} 19. e3 {[%clk 0:01:47.8]} 19... f5
{[%clk 0:01:46]} 20. Nc3 {[%clk 0:01:47.9]} 20... f4 {[%clk 0:01:46.2]} 21. Ne4
{[%clk 0:01:30.4]} 21... f3 {[%clk 0:01:29.8]} 22. Qd5+ {[%clk 0:01:19.1]} 22...
Kh8 {[%clk 0:01:21.9]} 23. Bxf3 {[%clk 0:00:51.3]} 23... Rxf3 {[%clk 0:01:20.6]}
24. Kf1 {[%clk 0:00:41.7]} 24... Raf8 {[%clk 0:01:16.7]} 25. Ke2 {[%clk
0:00:41.3]} 25... Rxf2+ {[%clk 0:01:15.7]} 0-1